fUST/lending_fUST_20250527
["ID","MTS","AMOUNT","RATE_DAILY","PERIOD"]
[362421982,1748277046028,-815.13,0.00024657,3]
[362421983,1748277046037,-540.52,0.00024657,3]
[362421985,1748277046047,-948.42,0.00024657,3]
[362421987,1748277046057,-815.13,0.00024657,3]
[362421988,1748277046066,-540.52,0.00024657,3]
[362421989,1748277046076,-948.42,0.00024657,3]
[362421990,1748277046085,-815.13,0.00024657,3]
[362421991,1748277046096,-540.52,0.00024657,3]
[362421992,1748277046105,-948.42,0.00024657,3]
[362421993,1748277046116,-815.13,0.00024657,3]
[362421994,1748277046126,-540.6,0.00024657,3]
[362421995,1748277046136,-948.42,0.00024657,3]
[362421996,1748277046146,-815.13,0.00024657,3]
[362421997,1748277046155,-948.42,0.00024657,3]
[362421998,1748277046166,-430.0,0.00024657,3]
[362421999,1748277046176,-815.13,0.00024657,3]
[362422000,1748277046186,-948.60999999,0.00024657,3]
[362422001,1748277046196,-155.65,0.00024657,3]
[362422002,1748277046206,-815.13,0.00024657,3]
[362422003,1748277046216,-815.13,0.00024657,3]
[362422004,1748277046226,-815.13,0.00024657,3]
[362422005,1748277046236,-815.13,0.00024657,3]
[362422007,1748277046245,-815.13,0.00024657,3]
[362422008,1748277046255,-815.13,0.00024657,3]
[362422010,1748277046264,-815.13,0.00024657,3]
[362422011,1748277046273,-400.98304236,0.00024657,3]
[362422013,1748277046282,-815.13,0.00024657,3]
[362422015,1748277046292,-815.13,0.00024657,3]
[362422016,1748277046302,-430.0,0.00024657,3]
[362422018,1748277046312,-815.13,0.00024657,3]
[362422024,1748277046321,-815.13,0.00024657,3]
[362422026,1748277046423,-815.13,0.00024657,3]
[362422028,1748277046433,-815.13,0.00024657,3]
[362422030,1748277046442,-469.1,0.00024657,3]
[362422031,1748277046451,-815.35,0.00024657,3]
[362422032,1748277046461,-452.28820013,0.00024657,3]
[362422033,1748277046470,-400.0,0.00024657,3]
[362422034,1748277046479,-430.0,0.00024657,3]
[362422035,1748277046488,-178.41876216,0.00024657,3]
[362422036,1748277046497,-460.09,0.00024657,3]
[362422037,1748277046507,-550.52,0.00024657,3]
[362422038,1748277046517,-550.52,0.00024657,3]
[362422039,1748277046526,-550.52,0.00024657,3]
[362422040,1748277046535,-550.52,0.00024657,3]
[362422041,1748277046545,-550.52,0.00024657,3]
[362422042,1748277046555,-550.52,0.00024657,3]
[362422043,1748277046564,-550.52,0.00024657,3]
[362422044,1748277046574,-550.52,0.00024657,3]
[362422045,1748277046584,-550.52,0.00024657,3]
[362422046,1748277046593,-400.0,0.00024657,3]
[362422047,1748277046601,-550.52,0.00024657,3]
[362422048,1748277046610,-550.52,0.00024657,3]
[362422049,1748277046618,-550.52,0.00024657,3]
[362422050,1748277046627,-550.52,0.00024657,3]
[362422051,1748277046636,-3593.23,0.00024657,3]
[362422052,1748277046645,-550.52,0.00024657,3]
[362422053,1748277046654,-550.52,0.00024657,3]
[362422054,1748277046664,-3593.23,0.00024657,3]
[362422055,1748277046673,-3593.23,0.00024657,3]
[362422056,1748277046682,-550.52,0.00024657,3]
[362422057,1748277046691,-3593.23,0.00024657,3]
[362422058,1748277046701,-550.52,0.00024657,3]
[362422059,1748277046710,-3593.23,0.00024657,3]
[362422060,1748277046720,-430.0,0.00024657,3]
[362422061,1748277046728,-550.52,0.00024657,3]
[362422062,1748277046737,-3593.23,0.00024657,3]
[362422063,1748277046746,-550.52,0.00024657,3]
[362422064,1748277046755,-3593.23,0.00024657,3]
[362422065,1748277046762,-550.52,0.00024657,3]
[362422066,1748277046770,-450.0,0.00024657,3]
[362422067,1748277046777,-3593.23,0.00024657,3]
[362422068,1748277046784,-550.52,0.00024657,3]
[362422069,1748277046791,-3593.23,0.00024657,3]
[362422070,1748277046798,-550.52,0.00024657,3]
[362422071,1748277046805,-3593.23,0.00024657,3]
[362422072,1748277046813,-400.67596319,0.00024657,3]
[362422073,1748277046820,-3593.23,0.00024657,3]
[362422074,1748277046827,-3593.23,0.00024657,3]
[362422075,1748277046834,-3593.23,0.00024657,3]
[362422076,1748277046843,-550.52,0.00024657,3]
[362422077,1748277046851,-3593.23,0.00024657,3]
[362422078,1748277046858,-550.69,0.00024657,3]
[362422079,1748277046866,-3593.23,0.00024657,3]
[362422080,1748277046875,-3593.23,0.00024657,3]
[362422081,1748277046883,-3593.23,0.00024657,3]
[362422082,1748277046894,-555.25,0.00024657,3]
[362422083,1748277046905,-3593.23,0.00024657,3]
[362422084,1748277046914,-3593.23,0.00024657,3]
[362422085,1748277046922,-3593.23,0.00024657,3]
[362422086,1748277046931,-430.0,0.00024657,3]
[362422087,1748277046940,-430.0,0.00024657,3]
[362422088,1748277046950,-3593.23,0.00024657,3]
[362422089,1748277046961,-430.0,0.00024657,3]
[362422090,1748277046976,-463.58,0.00024657,3]
[362422091,1748277046988,-335.54,0.00024657,3]
[362422092,1748277046998,-3593.23,0.00024657,3]
[362422093,1748277047008,-191.65,0.00024657,3]
[362422094,1748277047018,-463.58,0.00024657,3]
[362422095,1748277047028,-430.0,0.00024657,3]
[362422096,1748277047038,-463.58,0.00024657,3]
[362422097,1748277047048,-430.0,0.00024657,3]
[362422098,1748277047058,-463.58,0.00024657,3]
[362422099,1748277047067,-3593.23,0.00024657,3]
[362422100,1748277047077,-401.54252239,0.00024657,2]
[362422101,1748277047087,-463.58,0.00024657,3]
[362422102,1748277047098,-3593.32,0.00024657,3]
[362422103,1748277047108,-347.88,0.00024657,3]
[362422104,1748277047118,-463.58,0.00024657,3]
[362422105,1748277047128,-463.58,0.00024657,3]
[362422106,1748277047137,-463.58,0.00024657,3]
[362422107,1748277047148,-430.0,0.00024657,3]
[362422108,1748277047159,-463.58,0.00024657,3]
[362422109,1748277047170,-463.58,0.00024657,3]
[362422110,1748277047185,-463.58,0.00024657,3]
[362422111,1748277047409,-463.58,0.00024657,3]
[362422112,1748277047420,-463.58,0.00024657,3]
[362422113,1748277047430,-400.0,0.00024657,3]
[362422114,1748277047439,-463.58,0.00024657,3]
[362422115,1748277047448,-463.58,0.00024657,3]
[362422116,1748277047457,-463.58,0.00024657,3]
[362422117,1748277047467,-463.58,0.00024657,3]
[362422118,1748277047475,-463.58,0.00024657,3]
[362422119,1748277047484,-463.58,0.00024657,3]
[362422120,1748277047493,-463.58,0.00024657,3]
[362422121,1748277047503,-430.0,0.00024657,3]
[362422122,1748277047512,-400.0,0.00024657,3]
[362422123,1748277047521,-463.58,0.00024657,3]
[362422124,1748277047531,-430.0,0.00024657,3]
[362422125,1748277047540,-430.0,0.00024657,3]
[362422126,1748277047549,-463.58,0.00024657,3]
[362422127,1748277047557,-430.0,0.00024657,3]
[362422128,1748277047567,-430.0,0.00024657,3]
[362422129,1748277047576,-463.58,0.00024657,3]
[362422130,1748277047585,-155.83,0.00024657,3]
[362422131,1748277047596,-430.0,0.00024657,3]
[362422132,1748277047607,-463.62,0.00024657,3]
[362422133,1748277047616,-430.0,0.00024657,3]
[362422134,1748277047625,-430.0,0.00024657,3]
[362422135,1748277047635,-430.0,0.00024657,3]
[362422136,1748277047643,-430.0,0.00024657,3]
[362422137,1748277047653,-430.0,0.00024657,3]
[362422138,1748277047662,-430.0,0.00024657,3]
[362422139,1748277047671,-430.0,0.00024657,3]
[362422140,1748277047681,-430.0,0.00024657,3]
[362422141,1748277047690,-430.0,0.00024657,3]
[362422142,1748277047700,-430.0,0.00024657,3]
[362422143,1748277047710,-430.0,0.00024657,3]
[362422144,1748277047720,-430.0,0.00024657,3]
[362422145,1748277047729,-430.0,0.00024657,3]
[362422146,1748277047739,-430.0,0.00024657,3]
[362422147,1748277047748,-430.0,0.00024657,3]
[362422148,1748277047758,-430.0,0.00024657,3]
[362422149,1748277047767,-430.0,0.00024657,3]
[362422150,1748277047777,-430.0,0.00024657,3]
[362422151,1748277047786,-366.14,0.00024657,3]
[362422152,1748277047796,-430.0,0.00024657,3]
[362422153,1748277047808,-430.0,0.00024657,3]
[362422154,1748277047817,-430.0,0.00024657,3]
[362422155,1748277047827,-430.0,0.00024657,3]
[362422156,1748277047837,-430.0,0.00024657,3]
[362422157,1748277047851,-430.0,0.00024657,3]
[362422158,1748277047861,-430.0,0.00024657,3]
[362422159,1748277047871,-430.0,0.00024657,3]
[362422160,1748277047880,-430.0,0.00024657,3]
[362422161,1748277047890,-430.0,0.00024657,3]
[362422162,1748277047900,-430.0,0.00024657,3]
[362422163,1748277047911,-430.0,0.00024657,3]
[362422164,1748277047922,-430.0,0.00024657,3]
[362422165,1748277047935,-430.0,0.00024657,3]
[362422166,1748277047945,-430.0,0.00024657,3]
[362422167,1748277047955,-430.0,0.00024657,3]
[362422168,1748277047968,-430.0,0.00024657,3]
[362422169,1748277047979,-430.0,0.00024657,3]
[362422170,1748277047988,-430.0,0.00024657,3]
[362422171,1748277047998,-430.0,0.00024657,3]
[362422172,1748277048009,-430.0,0.00024657,3]
[362422173,1748277048019,-400.0,0.00024657,3]
[362422174,1748277048029,-430.0,0.00024657,3]
[362422175,1748277048039,-430.0,0.00024657,3]
[362422176,1748277048049,-430.0,0.00024657,3]
[362422177,1748277048060,-550.9,0.00024657,3]
[362422178,1748277048070,-430.0,0.00024657,3]
[362422179,1748277048080,-430.0,0.00024657,3]
[362422180,1748277048089,-430.0,0.00024657,3]
[362422181,1748277048102,-430.0,0.00024657,3]
[362422182,1748277048111,-430.0,0.00024657,3]
[362422183,1748277048121,-430.0,0.00024657,3]
[362422184,1748277048132,-430.0,0.00024657,3]
[362422185,1748277048141,-430.0,0.00024657,3]
[362422186,1748277048151,-430.0,0.00024657,3]
[362422187,1748277048160,-430.0,0.00024657,3]
[362422188,1748277048171,-430.0,0.00024657,3]
[362422189,1748277048181,-430.0,0.00024657,3]
[362422190,1748277048191,-430.0,0.00024657,3]
[362422191,1748277048201,-430.0,0.00024657,3]
[362422192,1748277048211,-430.0,0.00024657,3]
[362422193,1748277048221,-430.0,0.00024657,3]
[362422194,1748277048231,-880.95,0.00024657,3]
[362422195,1748277048242,-430.0,0.00024657,3]
[362422196,1748277048253,-454.53548786,0.00024657,3]
[362422197,1748277048263,-430.0,0.00024657,3]
[362422198,1748277048273,-430.0,0.00024657,3]
[362422199,1748277048283,-880.95,0.00024657,3]
[362422200,1748277048294,-329.18,0.00024657,3]
[362422201,1748277048305,-365.81,0.00024657,3]
[362422202,1748277048315,-430.0,0.00024657,3]
[362422203,1748277048325,-430.0,0.00024657,3]
[362422204,1748277048335,-880.95,0.00024657,3]
[362422205,1748277048347,-430.0,0.00024657,3]
[362422206,1748277048357,-550.68326093,0.00024657,3]
[362422207,1748277048634,-330.26673907,0.00024657,3]
[362422208,1748277048644,-430.0,0.00024657,3]
[362422209,1748277048654,-880.95,0.00024657,3]
[362422210,1748277048663,-430.0,0.00024657,3]
[362422211,1748277048673,-880.95,0.00024657,3]
[362422212,1748277048683,-430.0,0.00024657,3]
[362422213,1748277048692,-315.14,0.00024657,3]
[362422214,1748277048701,-430.0,0.00024657,3]
[362422215,1748277048710,-880.95,0.00024657,3]
[362422216,1748277048718,-430.0,0.00024657,3]
[362422217,1748277048727,-430.0,0.00024657,3]
[362422218,1748277048737,-880.95,0.00024657,3]
[362422219,1748277048746,-430.0,0.00024657,3]
[362422220,1748277048756,-569.9,0.00024657,3]
[362422221,1748277048766,-880.95,0.00024657,3]
[362422222,1748277048776,-620.55,0.00024657,3]
[362422223,1748277048785,-880.95,0.00024657,3]
[362422224,1748277048794,-620.55,0.00024657,3]
[362422225,1748277048803,-572.11860669,0.00024657,3]
[362422226,1748277048816,-308.83139331,0.00024657,3]
[362422227,1748277048827,-620.55,0.00024657,3]
[362422228,1748277048836,-208.11860669,0.00024657,3]
[362422229,1748277048969,-507.33974753,0.00022351,2]
[362422230,1748277048978,-300.0,0.00023218,2]
[362422231,1748277048987,-983.5,0.00024149,15]
[362422232,1748277048996,-672.83139331,0.00024657,3]
[362422233,1748277049006,-620.55,0.00024657,3]
[362422234,1748277049016,-880.95,0.00024657,3]
[362422235,1748277049026,-620.55,0.00024657,3]
[362422236,1748277049037,-589.71,0.00024657,3]
[362422237,1748277049047,-482.52733892,0.00024657,3]
[362422238,1748277049057,-880.95,0.00024657,3]
[362422239,1748277049067,-620.55,0.00024657,3]
[362422240,1748277049078,-880.95,0.00024657,3]
[362422241,1748277049088,-589.71,0.00024657,3]
[362422242,1748277049099,-620.55,0.00024657,3]
[362422243,1748277049109,-589.71,0.00024657,3]
[362422244,1748277049120,-880.95,0.00024657,3]
[362422245,1748277049130,-620.55,0.00024657,3]
[362422246,1748277049140,-589.71,0.00024657,3]
[362422247,1748277049150,-880.95,0.00024657,3]
[362422248,1748277049161,-620.55,0.00024657,3]
[362422249,1748277049171,-589.71,0.00024657,3]
[362422250,1748277049181,-880.95,0.00024657,3]
[362422251,1748277049192,-430.0,0.00024657,3]
[362422252,1748277049203,-620.55,0.00024657,3]
[362422253,1748277049214,-589.71,0.00024657,3]
[362422254,1748277049225,-880.95,0.00024657,3]
[362422255,1748277049236,-430.0,0.00024657,3]
[362422256,1748277049246,-620.55,0.00024657,3]
[362422257,1748277049256,-589.71,0.00024657,3]
[362422258,1748277049267,-430.0,0.00024657,3]
[362422259,1748277049277,-430.0,0.00024657,3]
[362422260,1748277049287,-620.55,0.00024657,3]
[362422261,1748277049297,-589.71,0.00024657,3]
[362422262,1748277049307,-430.0,0.00024657,3]
[362422263,1748277049317,-880.95,0.00024657,3]
[362422264,1748277049327,-620.55,0.00024657,3]
[362422265,1748277049337,-589.71,0.00024657,3]
[362422266,1748277049347,-430.0,0.00024657,3]
[362422267,1748277049357,-620.55,0.00024657,3]
[362422268,1748277049367,-880.95,0.00024657,3]
[362422269,1748277049377,-589.71,0.00024657,3]
[362422270,1748277049387,-430.0,0.00024657,3]
[362422271,1748277049397,-620.55,0.00024657,3]
[362422272,1748277049407,-110.53515879,0.00024657,3]
[362422273,1748277050363,-722.883952,0.00024657,3]
[362422274,1748277050376,-47.53088921,0.00024657,3]
[362422275,1748277050387,-403.61522114,0.00024657,3]
[362422276,1748277050396,-589.71,0.00024657,3]
[362422277,1748277050406,-430.0,0.00024657,3]
[362422278,1748277050417,-620.55,0.00024657,3]
[362422279,1748277050428,-880.95,0.00024657,3]
[362422280,1748277050438,-222.39648162,0.00024657,3]
[362422281,1748277050453,-367.31351838,0.00024657,3]
[362422282,1748277050463,-430.0,0.00024657,3]
[362422283,1748277050473,-881.12543104,0.00024657,3]
[362422284,1748277050483,-589.71,0.00024657,3]
[362422285,1748277050494,-430.0,0.00024657,3]
[362422286,1748277050505,-555.10552139,0.00024657,3]
[362422287,1748277050518,-65.44447861,0.00024657,3]
[362422288,1748277050529,-589.71,0.00024657,3]
[362422289,1748277050539,-620.55,0.00024657,3]
[362422290,1748277050549,-589.71,0.00024657,3]
[362422291,1748277050560,-430.0,0.00024657,3]
[362422292,1748277050572,-620.55,0.00024657,3]
[362422293,1748277050582,-589.71,0.00024657,3]
[362422294,1748277050593,-430.0,0.00024657,3]
[362422295,1748277050605,-620.55,0.00024657,3]
[362422296,1748277050615,-589.71,0.00024657,3]
[362422297,1748277050624,-430.0,0.00024657,3]
[362422298,1748277050634,-620.55,0.00024657,3]
[362422299,1748277050645,-430.0,0.00024657,3]
[362422300,1748277050656,-533.24642803,0.00024657,3]
[362422301,1748277050837,-28.35009271,0.00024657,3]
[362422302,1748277050883,-404.0,0.00023203,2]
[362422303,1748277050892,-8.48412212,0.00024149,15]
[362422304,1748277050905,-360.55077788,0.00024149,15]
[362422305,1748277050914,-1096.644524,0.000246,2]
[362422306,1748277050925,-58.95347926,0.00024657,3]
[362422307,1748277050935,-589.71,0.00024657,3]
[362422308,1748277050944,-430.0,0.00024657,3]
[362422309,1748277050954,-620.55,0.00024657,3]
[362422310,1748277050967,-543.59121886,0.00024657,3]
[362422311,1748277050994,-46.11878114,0.00024657,3]
[362422312,1748277051006,-2.07289054,0.00024657,3]
[362422321,1748278031160,-221.05793463,0.00018033,2]
[362422322,1748278039095,-231.46664152,0.00018033,2]
[362422323,1748278044132,-162.82542385,0.00018033,2]
[362422324,1748278044158,-475.27246678,0.00019672,2]
[362422326,1748278156106,-595.52,0.00018014,2]
[362422327,1748278156131,-193.85642057,0.000189,2]
[362422328,1748278156157,-1191.05,0.00019652,2]
[362422329,1748278156182,-250.0,0.000201,2]
[362422330,1748278156203,-478.4815536,0.00020248,2]
[362422331,1748278156223,-239.992975,0.00020323,2]
[362422332,1748278156244,-166.0,0.0002051,2]
[362422333,1748278156265,-206.853449,0.00020787,2]
[362422334,1748278156285,-229.15402412,0.00021,2]
[362422335,1748278156309,-160.0,0.00021,2]
[362422336,1748278156329,-894.64583333,0.00021,2]
[362422337,1748278156351,-500.0,0.00021164,2]
[362422338,1748278156373,-1786.57,0.0002129,2]
[362422339,1748278156395,-1200.0,0.00021317,2]
[362422340,1748278156415,-160.0,0.00021317,2]
[362422341,1748278156435,-14215.17298418,0.00021324,2]
[362422342,1748278164100,-300.0,0.00021834,2]
[362422343,1748278164124,-501.79554139,0.00021991,2]
[362422344,1748278164146,-500.0,0.00021991,2]
[362422345,1748278164172,-500.0,0.00021991,2]
[362422346,1748278164197,-500.0,0.00021991,2]
[362422347,1748278164219,-541.22522334,0.00021991,2]
[362422348,1748278164240,-643.06661699,0.00021991,2]
[362422349,1748278164260,-460.44531479,0.00021991,2]
[362422350,1748278164281,-193.66240343,0.00021991,2]
[362422351,1748278164305,-11207.7526501,0.00021993,2]
[362422352,1748278164327,-500.0,0.00021999,2]
[362422353,1748278164351,-500.0,0.00021999,2]
[362422354,1748278164371,-355.13782327,0.00021999,2]
[362422355,1748278164396,-628.47559193,0.00021999,2]
[362422356,1748278164418,-500.0,0.00021999,2]
[362422357,1748278164441,-493.49511268,0.00021999,2]
[362422358,1748278164464,-500.0,0.00021999,2]
[362422359,1748278164486,-159.023,0.00021999,2]
[362422360,1748278164508,-5285.37,0.00021999,2]
[362422361,1748278164528,-15372.75749614,0.00022,2]
[362422362,1748278172084,-54213.81530022,0.00022,2]
[362422363,1748278173485,250.0,0.000201,2]
[362422364,1748278174818,250.0,0.00020101,2]
[362422365,1748278176263,249.66817197,0.00020102,2]
[362422366,1748278209990,530.56,0.00018748,2]
[362422367,1748278210417,1061.12,0.00020453,2]
[362422432,1748278238664,-300.0,0.00021998,2]
[362422434,1748278238675,-1200.0,0.00021999,2]
[362422436,1748278238685,-2435.20747159,0.00021999,2]
[362422438,1748278238696,-432.34794334,0.00021999,2]
[362422441,1748278238714,-2197.58458507,0.00021999,2]
[362422444,1748278238723,-279.19715239,0.00022,2]
[362422553,1748278240810,-936.207534,0.00022,2]
[362422565,1748278240864,-3290.77000001,0.00022,2]
[362422950,1748278246649,-21984.38615066,0.00022,2]
[362422954,1748278246703,-10284.1916535,0.00022,2]
[362422956,1748278246713,-229.15402412,0.00022,2]
[362422958,1748278246723,-500.0,0.00022,2]
[362422960,1748278246735,-160.3320729,0.00022087,2]
[362422962,1748278246744,-1591.67,0.00022157,2]
[362422964,1748278246754,-2427.84112489,0.00022846,2]
[362422966,1748278282544,472.68,0.00020229,2]
[362422967,1748278287648,500.0,0.00021164,2]
[362422968,1748278569021,3184.0,0.0002,120]
[362422974,1748279146119,-482.82810524,0.000199,2]
[362422975,1748279146140,-193.304747,0.00020998,2]
[362422976,1748279146162,-160.0,0.00021877,2]
[362422977,1748279146182,-212.59253735,0.00021878,2]
[362422978,1748279146207,-57.98434241,0.0002188,2]
[362422980,1748279234092,-417.57864318,0.0002188,2]
[362422981,1748279236113,-1017.86974796,0.0002188,2]
[362422982,1748279241222,-926.86477955,0.0002188,2]
[362422983,1748279241246,-1200.0,0.00021972,2]
[362422984,1748279241268,-274.0,0.00021972,2]
[362422985,1748279241291,-159.93484711,0.00021972,2]
[362422986,1748279253101,-140.06515289,0.00021972,2]
[362422987,1748279253126,-300.0,0.00021972,2]
[362422988,1748279253149,-387.30070646,0.00021973,2]
[362422989,1748279356089,-252.65383538,0.00019872,2]
[362422990,1748279373195,-69.23156811,0.00019872,2]
[362423055,1748279437071,-22.69797182,0.00021973,2]
[362423056,1748279437085,-6911.83725962,0.00021973,2]
[362423057,1748279437098,-160.0,0.0002199,2]
[362423058,1748279437107,-160.0,0.0002199,2]
[362423059,1748279437118,-1200.0,0.00021991,2]
[362423060,1748279437127,-157.89,0.00021993,2]
[362423061,1748279437137,-894.64583333,0.00022828,2]
[362423062,1748279437147,-4070.40991511,0.00022846,2]
[362423063,1748279437156,-500.0,0.00022899,2]
[362423064,1748279437165,-619.14376012,0.00022899,2]
[362423065,1748279437175,-627.88176916,0.00022899,2]
[362423066,1748279437184,-10123.65904635,0.000229,2]
[362423091,1748279437801,-113.09663866,0.00022845,2]
[362423094,1748279437815,-186.90336134,0.00022845,2]
[362423096,1748279437824,-5639.59001319,0.000229,2]
[362423632,1748279445853,-31844.80204508,0.000229,2]
[362423633,1748279445863,-336.12875984,0.000229,8]
[362423634,1748279445873,-336.12875956,0.00022969,8]
[362423635,1748279445883,-336.12875956,0.00023038,8]
[362423636,1748279445893,-404.0,0.00023075,2]
[362423637,1748279445902,-336.12875956,0.00023107,8]
[362423638,1748279445912,-336.12875956,0.00023176,8]
[362423639,1748279445922,-336.12875956,0.00023245,8]
[362423640,1748279445944,-336.12875956,0.00023314,9]
[362423641,1748279445955,-207.4,0.00023322,2]
[362423642,1748279445965,-151.0,0.00023322,2]
[362423643,1748279445975,-151.0,0.00023322,2]
[362423644,1748279445985,-151.0,0.00023322,2]
[362423645,1748279445995,-151.0,0.00023322,2]
[362423646,1748279446005,-151.0,0.00023322,2]
[362423647,1748279446015,-151.0,0.00023322,2]
[362423648,1748279446026,-151.0,0.00023322,2]
[362423649,1748279446037,-151.0,0.00023322,2]
[362423650,1748279446047,-151.0,0.00023322,2]
[362423651,1748279446056,-151.0,0.00023322,2]
[362423652,1748279446066,-151.0,0.00023322,2]
[362423653,1748279446076,-151.0,0.00023322,2]
[362423654,1748279446086,-151.0,0.00023322,2]
[362423655,1748279446096,-151.0,0.00023322,2]
[362423656,1748279446106,-151.0,0.00023322,2]
[362423657,1748279446116,-248.59647629,0.00023355,2]
[362423658,1748279446126,-500.0,0.00023355,2]
[362423659,1748279446136,-500.0,0.00023355,2]
[362423660,1748279446146,-639.93291435,0.00023355,2]
[362423661,1748279446156,-545.44657887,0.00023355,2]
[362423662,1748279446166,-243.22807555,0.00023356,2]
[362423663,1748279446177,-150.0,0.00023378,2]
[362423664,1748279446187,-69.84019018,0.00023383,9]
[362423665,1748279446552,-46.39762702,0.00023383,9]
[362423666,1748279446812,-31.87945647,0.00023383,9]
[362423667,1748279487987,2387.71517849,0.00018585,2]
[362423671,1748280300627,160.918491,0.00013699,2]
[362423675,1748280432153,-260.40818988,0.00018571,2]
[362423676,1748280432176,-160.0,0.00018577,2]
[362423677,1748280432198,-2612.28482151,0.00018585,2]
[362423678,1748280432220,-5299.8334842,0.00020238,2]
[362423679,1748280432242,-178.662314,0.00020435,2]
[362423680,1748280432263,-718.1938491,0.00020938,2]
[362423681,1748280432285,-278.0766187,0.00020992,2]
[362423682,1748280432307,-300.0,0.0002103,2]
[362423683,1748280432328,-894.64583333,0.00021031,2]
[362423684,1748280432350,-160.0,0.00021031,2]
[362423685,1748280432371,-151.0,0.00021049,2]
[362423686,1748280432394,-1200.0,0.00021061,2]
[362423687,1748280432419,-300.0,0.00021061,2]
[362423688,1748280432441,-9805.00130028,0.00021062,2]
[362423691,1748280548118,-10367.40348076,0.00018,2]
[362423692,1748280548141,-17314.71479523,0.00018149,2]
[362423693,1748280548163,-478.7958994,0.00018962,2]
[362423694,1748280548186,-110754.54009381,0.00019,2]
[362423695,1748280550120,-92579.02098619,0.00019,2]
[362423696,1748280550142,-465.52518227,0.000199,2]
[362423697,1748280550164,-2677.87453239,0.0002,2]
[362423698,1748280550184,-13286.31812257,0.0002,3]
[362423699,1748280550205,-67267.89778653,0.0002,2]
[362423700,1748280550231,-166.0,0.00020274,2]
[362423701,1748280550254,-1585.9274351,0.00020524,2]
[362423702,1748280550276,-465.52518226,0.0002065,2]
[362423703,1748280550296,-100000.0,0.0002099,2]
[362423704,1748280550318,-160.0,0.00021062,2]
[362423705,1748280550341,-160.0,0.00021062,2]
[362423706,1748280550363,-156.587,0.00021104,2]
[362423707,1748280550386,-162.380719,0.00021159,2]
[362423708,1748280550410,-178.806015,0.0002116,2]
[362423709,1748280550434,-500.0,0.00021164,2]
[362423710,1748280550456,-894.64583333,0.00021164,2]
[362423711,1748280550476,-157.89,0.00021164,2]
[362423712,1748280550498,-168.3888056,0.00021214,2]
[362423713,1748280550519,-174.61919141,0.00021269,2]
[362423714,1748280550539,-181.08010149,0.00021324,2]
[362423715,1748280550560,-268.4291825,0.00021379,2]
[362423716,1748280550581,-465.52518226,0.000214,2]
[362423717,1748280550602,-9513.4729023,0.00021689,2]
[362423718,1748280550623,-187.361,0.00021867,2]
[362423719,1748280550646,-363.9573106,0.000219,2]
[362423720,1748280550669,-5000.0,0.00021919,2]
[362423721,1748280550692,-229.15402412,0.00021964,2]
[362423722,1748280550713,-7910.65021503,0.00022,2]
[362423723,1748280550735,-100105.17776428,0.00022,2]
[362423724,1748280550756,-29210.47500194,0.00022,2]
[362423725,1748280550776,-82465.08543436,0.00022,2]
[362423726,1748280576076,443.94,0.00018585,2]
[362423741,1748280631996,-319.19726626,0.000199,2]
[362423742,1748280632006,-24900.0,0.00021173,2]